[Event "*** SCC Grand Prix: Titled Tuesday Blitz"]
[Site "Chess.com"]
[Date "2020.10.13"]
[Round "6"]
[White "coalescenet"]
[Black "kakakz"]
[Result "0-1"]
[WhiteElo "2185"]
[BlackElo "2362"]
[TimeControl "180+1"]
[EndTime "11:07:45 PDT"]
[Termination "kakakz won on time"]

1. d4 {[%clk 0:03:00.3]} 1... Nf6 {[%clk 0:02:59.7]} 2. c4 {[%clk 0:02:59]} 2...
g6 {[%clk 0:02:52.3]} 3. Nc3 {[%clk 0:02:58.3]} 3... Bg7 {[%clk 0:02:50.9]} 4.
Nf3 {[%clk 0:02:57.8]} 4... d6 {[%clk 0:02:51.8]} 5. Bg5 {[%clk 0:02:57]} 5...
h6 {[%clk 0:02:51.3]} 6. Bh4 {[%clk 0:02:56.9]} 6... Nbd7 {[%clk 0:02:51.6]} 7.
e3 {[%clk 0:02:56.7]} 7... O-O {[%clk 0:02:51.3]} 8. Be2 {[%clk 0:02:56.3]} 8...
c6 {[%clk 0:02:50.7]} 9. O-O {[%clk 0:02:55.4]} 9... e5 {[%clk 0:02:48.7]} 10.
Qc2 {[%clk 0:02:54.3]} 10... Re8 {[%clk 0:02:45.8]} 11. dxe5 {[%clk 0:02:52.7]}
11... dxe5 {[%clk 0:02:45.6]} 12. Rad1 {[%clk 0:02:51.6]} 12... Qe7 {[%clk
0:02:45.4]} 13. Nd2 {[%clk 0:02:44.7]} 13... a5 {[%clk 0:02:33.8]} 14. Nde4
{[%clk 0:02:40.1]} 14... g5 {[%clk 0:02:32.6]} 15. Bg3 {[%clk 0:02:35.1]} 15...
Nxe4 {[%clk 0:02:32.2]} 16. Nxe4 {[%clk 0:02:33.2]} 16... f5 {[%clk 0:02:21.5]}
17. Nd6 {[%clk 0:02:31.9]} 17... f4 {[%clk 0:02:21.4]} 18. Qg6 {[%clk 0:01:56]}
18... Nf6 {[%clk 0:02:16]} 19. exf4 {[%clk 0:01:38.3]} 19... exf4 {[%clk
0:02:13.6]} 20. Nxe8 {[%clk 0:01:35.5]} 20... Nxe8 {[%clk 0:02:00.4]} 21. Bh5
{[%clk 0:01:14.1]} 21... Be6 {[%clk 0:01:51.2]} 22. Rfe1 {[%clk 0:01:08.8]}
22... Nc7 {[%clk 0:01:51.4]} 23. c5 {[%clk 0:00:50.1]} 23... fxg3 {[%clk
0:01:48.6]} 24. hxg3 {[%clk 0:00:49.7]} 24... Qf6 {[%clk 0:01:32]} 25. Qxf6
{[%clk 0:00:40.1]} 25... Bxf6 {[%clk 0:01:31.8]} 26. Rd6 {[%clk 0:00:36.3]}
26... Bxb2 {[%clk 0:01:30.9]} 27. Rexe6 {[%clk 0:00:29.6]} 27... Nxe6 {[%clk
0:01:30.6]} 28. Rxe6 {[%clk 0:00:30.5]} 28... Bd4 {[%clk 0:01:24]} 29. Rxh6
{[%clk 0:00:26.6]} 29... Bxc5 {[%clk 0:01:22.8]} 30. Rg6+ {[%clk 0:00:26.5]}
30... Kf8 {[%clk 0:01:23]} 31. Rxg5 {[%clk 0:00:27.2]} 31... Bd4 {[%clk
0:01:19]} 32. a4 {[%clk 0:00:23.7]} 32... Rd8 {[%clk 0:01:16.3]} 33. Rf5+ {[%clk
0:00:23.4]} 33... Ke7 {[%clk 0:01:14.6]} 34. Rf7+ {[%clk 0:00:23.2]} 34... Kd6
{[%clk 0:01:14.5]} 35. Rxb7 {[%clk 0:00:23.2]} 35... Rf8 {[%clk 0:01:13.9]} 36.
Bf3 {[%clk 0:00:20.5]} 36... c5 {[%clk 0:01:09.3]} 37. Kf1 {[%clk 0:00:19.9]}
37... Re8 {[%clk 0:01:05.5]} 38. Rb1 {[%clk 0:00:16.7]} 38... c4 {[%clk
0:01:03.8]} 39. g4 {[%clk 0:00:15.5]} 39... c3 {[%clk 0:01:01.9]} 40. Rc1 {[%clk
0:00:11.3]} 40... Kc5 {[%clk 0:01:00.4]} 41. Be2 {[%clk 0:00:09.5]} 41... Kb4
{[%clk 0:00:59.4]} 42. Bb5 {[%clk 0:00:09.4]} 42... Rf8 {[%clk 0:00:59.1]} 43.
f3 {[%clk 0:00:09.2]} 43... Rh8 {[%clk 0:00:59.6]} 44. Ke2 {[%clk 0:00:08.9]}
44... Rh2 {[%clk 0:00:59.1]} 45. Kd3 {[%clk 0:00:07.1]} 45... Bg7 {[%clk
0:00:57.3]} 46. f4 {[%clk 0:00:03.3]} 46... Rxg2 {[%clk 0:00:56.9]} 47. g5
{[%clk 0:00:03.6]} 47... Rd2+ {[%clk 0:00:55.8]} 48. Ke3 {[%clk 0:00:03.8]}
48... Rg2 {[%clk 0:00:51.2]} 49. Bd3 {[%clk 0:00:03.1]} 49... Kb3 {[%clk
0:00:50.4]} 50. Rb1+ {[%clk 0:00:02.6]} 50... Kxa4 {[%clk 0:00:45]} 51. f5
{[%clk 0:00:02.7]} 51... Rxg5 {[%clk 0:00:44.1]} 52. Ra1+ {[%clk 0:00:01.8]}
52... Kb4 {[%clk 0:00:43]} 53. Kf4 {[%clk 0:00:02.5]} 53... Rg2 {[%clk
0:00:35.1]} 54. Rb1+ {[%clk 0:00:03.4]} 54... Rb2 {[%clk 0:00:34]} 55. Rg1
{[%clk 0:00:04]} 55... Bd4 {[%clk 0:00:33.1]} 56. f6 {[%clk 0:00:03]} 56... Bxg1
{[%clk 0:00:32.1]} 57. f7 {[%clk 0:00:03.1]} 57... Rf2+ {[%clk 0:00:32.2]} 0-1

[Event "*** SCC Grand Prix: Titled Tuesday Blitz"]
[Site "Chess.com"]
[Date "2020.10.13"]
[Round "6"]
[White "sergeikim"]
[Black "chito89"]
[Result "0-1"]
[WhiteElo "2525"]
[BlackElo "2802"]
[TimeControl "180+1"]
[EndTime "11:07:47 PDT"]
[Termination "chito89 won on time"]

1. d4 {[%clk 0:03:00.9]} 1... Nf6 {[%clk 0:02:54.2]} 2. c4 {[%clk 0:03:00.8]}
2... g6 {[%clk 0:02:54]} 3. Nc3 {[%clk 0:03:00.8]} 3... Bg7 {[%clk 0:02:53.8]}
4. e4 {[%clk 0:03:00.6]} 4... d6 {[%clk 0:02:53.9]} 5. Nge2 {[%clk 0:03:00.5]}
5... O-O {[%clk 0:02:53.7]} 6. Ng3 {[%clk 0:03:00.1]} 6... e5 {[%clk 0:02:52.4]}
7. d5 {[%clk 0:02:59.7]} 7... a5 {[%clk 0:02:51.6]} 8. Be2 {[%clk 0:02:58.1]}
8... Na6 {[%clk 0:02:51.6]} 9. O-O {[%clk 0:02:57.8]} 9... Nc5 {[%clk
0:02:51.6]} 10. Be3 {[%clk 0:02:56.9]} 10... Bd7 {[%clk 0:02:49.4]} 11. h3
{[%clk 0:02:48.2]} 11... a4 {[%clk 0:02:39.9]} 12. Qd2 {[%clk 0:02:46.9]} 12...
Ne8 {[%clk 0:02:31.7]} 13. f4 {[%clk 0:02:42.7]} 13... exf4 {[%clk 0:02:29.9]}
14. Bxf4 {[%clk 0:02:42.6]} 14... c6 {[%clk 0:02:16]} 15. Kh2 {[%clk 0:02:29.1]}
15... Qa5 {[%clk 0:02:12.2]} 16. Rac1 {[%clk 0:02:11.1]} 16... Ra6 {[%clk
0:01:50.5]} 17. Bh6 {[%clk 0:02:02.2]} 17... Rb6 {[%clk 0:01:42.7]} 18. Bxg7
{[%clk 0:01:59.1]} 18... Kxg7 {[%clk 0:01:43.1]} 19. Rc2 {[%clk 0:01:14]} 19...
f6 {[%clk 0:01:27.2]} 20. dxc6 {[%clk 0:01:04]} 20... bxc6 {[%clk 0:01:13.1]}
21. Qd4 {[%clk 0:00:52.4]} 21... Be6 {[%clk 0:01:11.9]} 22. Rd2 {[%clk 0:00:49]}
22... Nd7 {[%clk 0:01:05.9]} 23. h4 {[%clk 0:00:41.9]} 23... a3 {[%clk
0:01:01.9]} 24. b3 {[%clk 0:00:39.9]} 24... Qe5 {[%clk 0:00:56.5]} 25. h5 {[%clk
0:00:38.6]} 25... Qxd4 {[%clk 0:00:47.3]} 26. Rxd4 {[%clk 0:00:38.1]} 26... Ne5
{[%clk 0:00:48.2]} 27. Na4 {[%clk 0:00:35]} 27... Rb4 {[%clk 0:00:46.6]} 28.
Rfd1 {[%clk 0:00:33.6]} 28... c5 {[%clk 0:00:45]} 29. R4d2 {[%clk 0:00:32.5]}
29... Bxc4 {[%clk 0:00:42.2]} 30. Bxc4 {[%clk 0:00:29.6]} 30... Nxc4 {[%clk
0:00:41.7]} 31. Re2 {[%clk 0:00:20.7]} 31... Ne5 {[%clk 0:00:39.5]} 32. Nc3
{[%clk 0:00:20.5]} 32... Rd4 {[%clk 0:00:32.2]} 33. Rc1 {[%clk 0:00:19.8]} 33...
Nc7 {[%clk 0:00:31.6]} 34. Nb1 {[%clk 0:00:17.2]} 34... Rd3 {[%clk 0:00:28.7]}
35. Nxa3 {[%clk 0:00:14.9]} 35... Ne6 {[%clk 0:00:23]} 36. Nc4 {[%clk
0:00:12.9]} 36... Ng4+ {[%clk 0:00:23.2]} 37. Kh3 {[%clk 0:00:12.4]} 37... gxh5
{[%clk 0:00:21.3]} 38. Rf1 {[%clk 0:00:08.1]} 38... Kg6 {[%clk 0:00:17.5]} 39.
Rf3 {[%clk 0:00:07.8]} 39... Ng5+ {[%clk 0:00:17.3]} 40. Kh4 {[%clk 0:00:05.6]}
40... Nxf3+ {[%clk 0:00:18.2]} 41. gxf3 {[%clk 0:00:05.7]} 41... Rxf3 {[%clk
0:00:19.1]} 42. Nxh5 {[%clk 0:00:05.7]} 42... Ne5 {[%clk 0:00:18.4]} 43. Rg2+
{[%clk 0:00:04.6]} 43... Kh6 {[%clk 0:00:18.8]} 44. Nxd6 {[%clk 0:00:04.2]}
44... Ng6+ {[%clk 0:00:16.5]} 45. Kg4 {[%clk 0:00:03.1]} 45... Ne5+ {[%clk
0:00:15.9]} 46. Kh4 {[%clk 0:00:03]} 46... Rd8 {[%clk 0:00:13.7]} 47. Nf5+
{[%clk 0:00:02]} 47... Rxf5 {[%clk 0:00:14.2]} 48. exf5 {[%clk 0:00:02.3]} 48...
Rd4+ {[%clk 0:00:15.1]} 49. Kh3 {[%clk 0:00:01.5]} 49... Kxh5 {[%clk 0:00:15.5]}
0-1

[Event "*** SCC Grand Prix: Titled Tuesday Blitz"]
[Site "Chess.com"]
[Date "2020.10.13"]
[Round "6"]
[White "ShcufNaiRolf"]
[Black "AurumO"]
[Result "1-0"]
[WhiteElo "2311"]
[BlackElo "1924"]
[TimeControl "180+1"]
[EndTime "11:07:48 PDT"]
[Termination "ShcufNaiRolf won on time"]

1. e4 {[%clk 0:03:00.9]} 1... c5 {[%clk 0:02:59.5]} 2. Nf3 {[%clk 0:03:00.3]}
2... Nc6 {[%clk 0:02:57.7]} 3. d4 {[%clk 0:02:54.6]} 3... cxd4 {[%clk
0:02:58.6]} 4. Nxd4 {[%clk 0:02:55.5]} 4... g6 {[%clk 0:02:58.7]} 5. Nc3 {[%clk
0:02:55.1]} 5... Bg7 {[%clk 0:02:58.2]} 6. Be3 {[%clk 0:02:55.7]} 6... Nf6
{[%clk 0:02:58.1]} 7. Bc4 {[%clk 0:02:55.1]} 7... O-O {[%clk 0:02:58.5]} 8. Bb3
{[%clk 0:02:54.5]} 8... d6 {[%clk 0:02:58.5]} 9. f3 {[%clk 0:02:54.5]} 9... Bd7
{[%clk 0:02:58.7]} 10. Qd2 {[%clk 0:02:55]} 10... Nxd4 {[%clk 0:02:56.3]} 11.
Bxd4 {[%clk 0:02:55.3]} 11... b5 {[%clk 0:02:57]} 12. a4 {[%clk 0:02:50.9]}
12... b4 {[%clk 0:02:42.6]} 13. Nd5 {[%clk 0:02:48.6]} 13... Nxd5 {[%clk
0:02:41.1]} 14. Bxg7 {[%clk 0:02:49]} 14... Kxg7 {[%clk 0:02:42]} 15. exd5
{[%clk 0:02:47.9]} 15... Rc8 {[%clk 0:02:41.3]} 16. Qxb4 {[%clk 0:02:31.9]}
16... Bf5 {[%clk 0:02:32.4]} 17. Rc1 {[%clk 0:01:57.3]} 17... Qc7 {[%clk
0:02:20.4]} 18. Qd4+ {[%clk 0:01:47.1]} 18... Kg8 {[%clk 0:02:12.9]} 19. O-O
{[%clk 0:01:40.7]} 19... Qc5 {[%clk 0:02:02]} 20. Qxc5 {[%clk 0:01:35.2]} 20...
Rxc5 {[%clk 0:02:02.9]} 21. Rfe1 {[%clk 0:01:33.2]} 21... Rc7 {[%clk 0:01:52.4]}
22. g4 {[%clk 0:01:28.9]} 22... Bc8 {[%clk 0:01:51.8]} 23. Re3 {[%clk
0:01:27.9]} 23... Bb7 {[%clk 0:01:51.1]} 24. Rce1 {[%clk 0:01:27.4]} 24... Re8
{[%clk 0:01:50.3]} 25. a5 {[%clk 0:01:06.1]} 25... Kf8 {[%clk 0:01:45.3]} 26. c4
{[%clk 0:00:58.5]} 26... Ba6 {[%clk 0:01:33.3]} 27. Rc3 {[%clk 0:00:56.9]} 27...
Rec8 {[%clk 0:01:29.1]} 28. Ra1 {[%clk 0:00:54.7]} 28... Rc5 {[%clk 0:01:19.1]}
29. Ra4 {[%clk 0:00:52.1]} 29... e6 {[%clk 0:01:11.8]} 30. dxe6 {[%clk
0:00:51.5]} 30... fxe6 {[%clk 0:01:12.7]} 31. Ba2 {[%clk 0:00:49.2]} 31... d5
{[%clk 0:01:08.2]} 32. cxd5 {[%clk 0:00:46.7]} 32... exd5 {[%clk 0:01:06.9]} 33.
Rxc5 {[%clk 0:00:42]} 33... Rxc5 {[%clk 0:01:07.8]} 34. Kf2 {[%clk 0:00:31.2]}
34... Rc2+ {[%clk 0:01:03.5]} 35. Kg3 {[%clk 0:00:30.9]} 35... Rxb2 {[%clk
0:00:48.9]} 36. Bxd5 {[%clk 0:00:29.8]} 36... Rd2 {[%clk 0:00:44.5]} 37. Be4
{[%clk 0:00:21.5]} 37... Kg7 {[%clk 0:00:35.6]} 38. g5 {[%clk 0:00:19.7]} 38...
Rd7 {[%clk 0:00:21.7]} 39. h4 {[%clk 0:00:19.6]} 39... Bb7 {[%clk 0:00:19.8]}
40. Bc2 {[%clk 0:00:13.8]} 40... Rc7 {[%clk 0:00:18.5]} 41. Bd3 {[%clk
0:00:12.6]} 41... Rc3 {[%clk 0:00:16.6]} 42. Rd4 {[%clk 0:00:13]} 42... Rc7
{[%clk 0:00:15.8]} 43. Rd6 {[%clk 0:00:12.8]} 43... Rf7 {[%clk 0:00:14.9]} 44.
a6 {[%clk 0:00:12.7]} 44... Bxf3 {[%clk 0:00:11.4]} 45. Bc4 {[%clk 0:00:12.4]}
45... Rf8 {[%clk 0:00:09.8]} 46. Rd7+ {[%clk 0:00:12.7]} 46... Kh8 {[%clk
0:00:10]} 47. Rxa7 {[%clk 0:00:12.7]} 47... Bc6 {[%clk 0:00:08.3]} 48. Rf7
{[%clk 0:00:12.2]} 48... Rxf7 {[%clk 0:00:06.6]} 49. Bxf7 {[%clk 0:00:13.1]}
49... Kg7 {[%clk 0:00:06.7]} 50. Bc4 {[%clk 0:00:12.7]} 50... Kf8 {[%clk
0:00:06.8]} 51. Be2 {[%clk 0:00:12.7]} 51... Ke7 {[%clk 0:00:07.3]} 52. Bf3
{[%clk 0:00:12.6]} 52... Kd6 {[%clk 0:00:07.5]} 53. a7 {[%clk 0:00:12]} 1-0

[Event "*** SCC Grand Prix: Titled Tuesday Blitz"]
[Site "Chess.com"]
[Date "2020.10.13"]
[Round "6"]
[White "rasmussvane"]
[Black "cassoulet"]
[Result "1-0"]
[WhiteElo "2906"]
[BlackElo "2717"]
[TimeControl "180+1"]
[EndTime "11:07:52 PDT"]
[Termination "rasmussvane won by resignation"]

1. Nf3 {[%clk 0:03:00.9]} 1... Nf6 {[%clk 0:02:59.7]} 2. g3 {[%clk 0:03:01]}
2... e6 {[%clk 0:03:00.2]} 3. Bg2 {[%clk 0:03:01.2]} 3... Be7 {[%clk 0:03:01.1]}
4. O-O {[%clk 0:03:01.8]} 4... O-O {[%clk 0:03:01.7]} 5. c4 {[%clk 0:03:02.5]}
5... d5 {[%clk 0:03:02.4]} 6. b3 {[%clk 0:03:03.1]} 6... b6 {[%clk 0:03:00.8]}
7. d4 {[%clk 0:03:02.9]} 7... Bb7 {[%clk 0:03:01.5]} 8. Nc3 {[%clk 0:03:03.4]}
8... Nbd7 {[%clk 0:03:01.7]} 9. Bb2 {[%clk 0:03:03.2]} 9... dxc4 {[%clk
0:03:01.9]} 10. bxc4 {[%clk 0:03:03.3]} 10... c5 {[%clk 0:03:02.5]} 11. d5
{[%clk 0:03:03.8]} 11... exd5 {[%clk 0:03:03]} 12. cxd5 {[%clk 0:03:04.6]} 12...
Bd6 {[%clk 0:03:01.6]} 13. Nb5 {[%clk 0:02:35.1]} 13... Bb8 {[%clk 0:02:57.4]}
14. a4 {[%clk 0:02:25.6]} 14... Bxd5 {[%clk 0:02:48.6]} 15. Qc2 {[%clk
0:02:15.4]} 15... Be4 {[%clk 0:02:20.4]} 16. Qc4 {[%clk 0:02:13.2]} 16... Qe7
{[%clk 0:02:14.6]} 17. Rad1 {[%clk 0:02:05.3]} 17... a6 {[%clk 0:02:11.1]} 18.
Nc3 {[%clk 0:02:04.7]} 18... Bc6 {[%clk 0:02:11.3]} 19. Qb3 {[%clk 0:01:50]}
19... Bc7 {[%clk 0:02:06.2]} 20. e4 {[%clk 0:01:49.7]} 20... b5 {[%clk
0:01:27.8]} 21. axb5 {[%clk 0:01:42.5]} 21... axb5 {[%clk 0:01:28.7]} 22. Nd5
{[%clk 0:01:43.1]} 22... Bxd5 {[%clk 0:01:25.6]} 23. exd5 {[%clk 0:01:44]} 23...
Rab8 {[%clk 0:01:06.7]} 24. d6 {[%clk 0:01:44.1]} 24... Bxd6 {[%clk 0:01:02.4]}
25. Rfe1 {[%clk 0:01:43.2]} 25... Ne4 {[%clk 0:00:35.7]} 26. Nh4 {[%clk
0:01:43.1]} 26... c4 {[%clk 0:00:32.7]} 27. Qc2 {[%clk 0:01:40.3]} 27... f5
{[%clk 0:00:32.7]} 28. Nxf5 {[%clk 0:01:37.2]} 28... Rxf5 {[%clk 0:00:33.6]} 29.
Bxe4 {[%clk 0:01:34.9]} 29... Re5 {[%clk 0:00:34.1]} 30. Bxe5 {[%clk 0:01:22.3]}
30... Nxe5 {[%clk 0:00:35]} 31. f4 {[%clk 0:00:52.5]} 31... Qa7+ {[%clk
0:00:34.3]} 32. Kg2 {[%clk 0:00:49.6]} 32... Nd3 {[%clk 0:00:27.6]} 33. Bxd3
{[%clk 0:00:49]} 33... cxd3 {[%clk 0:00:28.5]} 34. Qxd3 {[%clk 0:00:45.3]} 34...
Bf8 {[%clk 0:00:28.5]} 35. Qd7 {[%clk 0:00:38.3]} 35... Qa8+ {[%clk 0:00:25.2]}
36. Qd5+ {[%clk 0:00:37.9]} 36... Qxd5+ {[%clk 0:00:25.3]} 37. Rxd5 {[%clk
0:00:38.8]} 37... b4 {[%clk 0:00:26.2]} 38. Rb1 {[%clk 0:00:31.1]} 38... g6
{[%clk 0:00:26.2]} 39. Rb3 {[%clk 0:00:29.7]} 39... Ra8 {[%clk 0:00:26.2]} 40.
Kf3 {[%clk 0:00:28.6]} 40... Ra7 {[%clk 0:00:26.2]} 41. h4 {[%clk 0:00:22.7]}
41... Kf7 {[%clk 0:00:25.9]} 42. Rbd3 {[%clk 0:00:19.5]} 42... Ke6 {[%clk
0:00:23.9]} 43. Re5+ {[%clk 0:00:19.4]} 43... Kf7 {[%clk 0:00:24.2]} 44. Kg4
{[%clk 0:00:19.6]} 44... Bg7 {[%clk 0:00:20]} 45. Red5 {[%clk 0:00:19.7]} 45...
Ke6 {[%clk 0:00:18.9]} 46. Rd6+ {[%clk 0:00:19.9]} 46... Ke7 {[%clk 0:00:18.9]}
47. Rb6 {[%clk 0:00:20]} 47... Bc3 {[%clk 0:00:18.9]} 48. Rd5 {[%clk 0:00:19.2]}
48... Kf7 {[%clk 0:00:18.4]} 49. h5 {[%clk 0:00:19]} 49... Kg7 {[%clk
0:00:17.9]} 50. Rdb5 {[%clk 0:00:18.5]} 50... gxh5+ {[%clk 0:00:17.6]} 51. Kxh5
{[%clk 0:00:19.4]} 51... Ra1 {[%clk 0:00:14.4]} 52. Rb7+ {[%clk 0:00:17.5]}
52... Kg8 {[%clk 0:00:14.8]} 53. Kg5 {[%clk 0:00:14.3]} 53... Rh1 {[%clk
0:00:13.6]} 54. g4 {[%clk 0:00:13.2]} 54... Rd1 {[%clk 0:00:11.9]} 55. Kf5
{[%clk 0:00:12.8]} 55... Rd6 {[%clk 0:00:11.7]} 56. Rb8+ {[%clk 0:00:12.5]}
56... Kg7 {[%clk 0:00:11.1]} 57. R5b7+ {[%clk 0:00:13]} 57... Kh6 {[%clk
0:00:09.1]} 58. g5+ {[%clk 0:00:13.2]} 58... Kh5 {[%clk 0:00:10]} 59. Rxh7+
{[%clk 0:00:13.6]} 1-0

[Event "*** SCC Grand Prix: Titled Tuesday Blitz"]
[Site "Chess.com"]
[Date "2020.10.13"]
[Round "6"]
[White "Msb2"]
[Black "starworld123"]
[Result "1-0"]
[WhiteElo "2938"]
[BlackElo "2726"]
[TimeControl "180+1"]
[EndTime "11:07:53 PDT"]
[Termination "Msb2 won by resignation"]

1. d4 {[%clk 0:03:00.9]} 1... Nf6 {[%clk 0:02:56.2]} 2. c4 {[%clk 0:03:00.5]}
2... e6 {[%clk 0:02:55.1]} 3. Nc3 {[%clk 0:03:00.4]} 3... Bb4 {[%clk 0:02:54.1]}
4. e3 {[%clk 0:03:00.8]} 4... O-O {[%clk 0:02:53.7]} 5. Bd2 {[%clk 0:03:00.6]}
5... d5 {[%clk 0:02:52.3]} 6. Nf3 {[%clk 0:03:01.1]} 6... c5 {[%clk 0:02:52.1]}
7. a3 {[%clk 0:03:01]} 7... Bxc3 {[%clk 0:02:51]} 8. Bxc3 {[%clk 0:03:01.9]}
8... Ne4 {[%clk 0:02:49.4]} 9. Rc1 {[%clk 0:03:02]} 9... cxd4 {[%clk 0:02:47.3]}
10. Nxd4 {[%clk 0:03:01.8]} 10... e5 {[%clk 0:02:40.4]} 11. Nf3 {[%clk
0:02:59.5]} 11... Nxc3 {[%clk 0:02:38.5]} 12. Rxc3 {[%clk 0:03:00.4]} 12... d4
{[%clk 0:02:38.8]} 13. exd4 {[%clk 0:03:01]} 13... e4 {[%clk 0:02:38.6]} 14. Ng1
{[%clk 0:03:01.6]} 14... Nc6 {[%clk 0:02:21.7]} 15. Ne2 {[%clk 0:03:01.8]} 15...
Bg4 {[%clk 0:02:19.3]} 16. d5 {[%clk 0:03:02.1]} 16... Ne5 {[%clk 0:02:18.8]}
17. Qd4 {[%clk 0:03:02.5]} 17... Nd3+ {[%clk 0:02:13.5]} 18. Kd2 {[%clk
0:03:02.9]} 18... Qg5+ {[%clk 0:01:46]} 19. Qe3 {[%clk 0:02:52.4]} 19... Qf6
{[%clk 0:01:40.9]} 20. f3 {[%clk 0:02:31.9]} 20... exf3 {[%clk 0:01:22.1]} 21.
gxf3 {[%clk 0:02:31.9]} 21... Bxf3 {[%clk 0:01:16.4]} 22. Rg1 {[%clk 0:02:31.7]}
22... Bxe2 {[%clk 0:00:49.5]} 23. Bxe2 {[%clk 0:02:32.6]} 23... Nf4 {[%clk
0:00:50.1]} 24. Rf1 {[%clk 0:01:51.8]} 24... g5 {[%clk 0:00:49.9]} 25. Bd1
{[%clk 0:01:37.4]} 25... Rfe8 {[%clk 0:00:43.9]} 26. Qg1 {[%clk 0:01:37.4]}
26... b5 {[%clk 0:00:41.2]} 27. h4 {[%clk 0:01:36.5]} 27... h6 {[%clk 0:00:37]}
28. hxg5 {[%clk 0:01:36.8]} 28... hxg5 {[%clk 0:00:37.9]} 29. c5 {[%clk
0:01:24.2]} 29... a5 {[%clk 0:00:23]} 30. Kc1 {[%clk 0:00:38]} 30... b4 {[%clk
0:00:20.4]} 31. Rg3 {[%clk 0:00:38.6]} 31... Re5 {[%clk 0:00:18.9]} 32. Qd4
{[%clk 0:00:34]} 32... Kf8 {[%clk 0:00:09.5]} 33. a4 {[%clk 0:00:31.1]} 33...
Rc8 {[%clk 0:00:06.1]} 34. Kb1 {[%clk 0:00:28.1]} 34... Qf5+ {[%clk 0:00:06.6]}
35. Bc2 {[%clk 0:00:28.6]} 35... Qf6 {[%clk 0:00:04.4]} 36. Ka2 {[%clk
0:00:26.4]} 36... Rf5 {[%clk 0:00:02.7]} 37. Qxf6 {[%clk 0:00:18.7]} 37... Rxf6
{[%clk 0:00:03.6]} 38. Rxg5 {[%clk 0:00:10.5]} 38... Nxd5 {[%clk 0:00:03.4]} 39.
Rxf6 {[%clk 0:00:09.7]} 39... Nxf6 {[%clk 0:00:04.3]} 40. Bb3 {[%clk 0:00:09.7]}
40... Ne4 {[%clk 0:00:03.9]} 41. Rf5 {[%clk 0:00:10.4]} 41... Nxc5 {[%clk
0:00:04.1]} 42. Rxf7+ {[%clk 0:00:10.6]} 42... Ke8 {[%clk 0:00:04.7]} 43. Ra7
{[%clk 0:00:11.5]} 43... Nxb3 {[%clk 0:00:04.6]} 44. Kxb3 {[%clk 0:00:12.4]}
44... Rc5 {[%clk 0:00:05.5]} 45. Rb7 {[%clk 0:00:09]} 45... Kd8 {[%clk
0:00:05.6]} 46. Rb5 {[%clk 0:00:09.6]} 46... Rxb5 {[%clk 0:00:06]} 47. axb5
{[%clk 0:00:10.5]} 47... Kc7 {[%clk 0:00:06.9]} 48. Ka4 {[%clk 0:00:11.2]} 48...
Kb6 {[%clk 0:00:07.4]} 49. b3 {[%clk 0:00:11.7]} 1-0